Cogmind - Beta 10.1 @@@ ROGUE MODE // 2020.09.23 @ 00:31:08 Player: _Cogmind Result: Self-destructed Performance ------------- Evolutions (1) 500 Regions Visited (2) 400 Robots Destroyed (13) 65 Value Destroyed (381) 381 Prototype IDs (0) 0 Alien Tech Used (0) 0 Bonus (0) 0 TOTAL SCORE: 1346 Bonus ------- None Cogmind --------- Core Integrity 350/400 Matter 279/300 Energy 4/100 System Corruption 0% Temperature Cool (0) Movement Walking (120) Location -9/Materials Parts ------- > --- POWER (1) -------- (None) > --- PROPULSION (4) --- Aluminum Leg Aluminum Leg Aluminum Leg > --- UTILITY (2) ------ Small Storage Unit Sensor Array > --- WEAPON (2) ------- Heavy EM Pulse Gun Autogun > --- INVENTORY (6) ---- Signal Interpreter Light Armor Plating Beam Rifle Advanced Beam Cannon Peak State ------------ > --- POWER ------------ Light Ion Engine > --- PROPULSION ------- Aluminum Leg Aluminum Leg Aluminum Leg > --- UTILITY ---------- Small Storage Unit Sensor Array > --- WEAPON ----------- EM Shotgun EM Shotgun > --- INVENTORY -------- Light Ion Engine Signal Interpreter EM Pulse Gun EM Shotgun Light Assault Rifle [Rating: 10] Favorites ----------- Power Light Ion Engine Engine Light Ion Engine Propulsion Aluminum Leg Leg Aluminum Leg Utility Small Storage Unit Device Sensor Array Storage Small Storage Unit Weapon EM Shotgun Energy Gun EM Shotgun Ballistic Gun Autogun Build | -11 -10 -9 ------- Run | Scr Mat Mat Slots Evolved 2 | . . 2 Power . | . . . Propulsion 2 | . . 2 Utility . | . . . Weapon . | . . . Parts Attached 25 | 6 10 9 Power 5 | 1 3 1 Engine 5 | 1 3 1 Core . | . . . Reactor . | . . . Propulsion 5 | 2 1 2 Treads . | . . . Leg 5 | 2 1 2 Wheel . | . . . Hover . | . . . Flight . | . . . Utility 5 | 1 3 1 Device 3 | . 2 1 Storage 2 | 1 1 . Processor . | . . . Hackware . | . . . Protection . | . . . Artifact . | . . . Weapon 10 | 2 3 5 Energy Gun 8 | 1 3 4 Energy Cannon . | . . . Ballistic Gun 2 | 1 . 1 Ballistic Cannon . | . . . Launcher . | . . . Special Weapon . | . . . Impact Weapon . | . . . Slashing Weapon . | . . . Piercing Weapon . | . . . Special Melee Weapon . | . . . Unidentified Prototypes . | . . . Parts Lost 5 | . . 5 Power 2 | . . 2 Propulsion 1 | . . 1 Utility . | . . . Weapon 2 | . . 2 Highest Loss Streak 5 | . . 5 Average Slot Usage (%) 91 | . 96 83 Engine 11 | . 14 7 Leg 29 | . 28 32 Device 11 | . 11 11 Storage 12 | . 14 11 Energy Gun 23 | . 26 17 Ballistic Gun 2 | . 1 4 Naked Turns . | . . . Heaviest Build 14 | 10 14 14 Greatest Support 30 | 20 20 30 Greatest Overweight (x) 1 | 1 . . Average Overweight (x) . | . . . Largest Inventory Capacity 14 | 6 14 6 Average Capacity 5 | 4 6 6 Most Carried 6 | 4 6 6 Average Carried 5 | 2 5 4 Final Capacity 6 | 6 6 6 Final Carried 6 | 4 6 4 Class Distribution -------------------- 100% | Mutant Dominant Class ---------------- Mutant | -10/Materials Mutant | -9/Materials Resources | -11 -10 -9 ----------- Run | Scr Mat Mat Matter Collected 465 | 175 147 143 Remotely . | . . . Salvage Created 553 | . 251 302 Parts 35 | . 20 15 Haulers Intercepted . | . . . Recyclers Shooed . | . . . Parts Field Recycled . | . . . Retrieved Matter . | . . . Parts Self-Destructed . | . . . Prevented . | . . . Kills | -11 -10 -9 ------- Run | Scr Mat Mat Combat Hostiles Destroyed 11 | . 5 6 Guns 11 | . 5 6 Classes Destroyed 6 | . 4 2 Recycler 1 | . 1 . Watcher 1 | . 1 . Swarmer 3 | . 3 . Grunt 6 | . 2 4 Duelist 1 | . . 1 Sentry 1 | . . 1 Best Kill Streak 4 | . 3 4 Combat Bots Only 4 | . 3 4 Max Kills in Single Turn 1 | . 1 1 Gunslinging . | . . . Exploded . | . . . Melee . | . . . Uniques/NPCs Destroyed . | . . . Combat | -11 -10 -9 -------- Run | Scr Mat Mat Damage Taken 705 | . 175 530 Core 68 | . 18 50 Absorbed by Shields . | . . . Core Remaining (%) 96 | 100 92 . Volleys Fired 32 | . 10 22 Largest 2 | . 2 2 Hottest 90 | . 90 90 Shots Fired 60 | . 20 40 Gun 60 | . 20 40 Cannon . | . . . Launcher . | . . . Special . | . . . Kinetic 14 | . . 14 Thermal . | . . . Explosive . | . . . Electromagnetic 46 | . 20 26 Robot Hit Streak 15 | . 15 14 Robot Miss Streak 4 | . 4 2 Penetration Max . | . . . Secondary Targets 1 | . . 1 Max Gunslinging Chain 1 | . . 1 Shots Hit Robots 47 | . 14 33 Core Hits 26 | . 12 14 Critical Hits . | . . . Critical Kills . | . . . Critical Parts Destroyed . | . . . Melee Attacks . | . . . Impact . | . . . Slashing . | . . . Piercing . | . . . Sneak Attacks . | . . . Combat Hostiles . | . . . Follow-up Attacks . | . . . Damage Inflicted 773 | . 315 458 Guns 640 | . 182 458 Cannons . | . . . Explosions 133 | . 133 . Melee . | . . . Ramming . | . . . Kinetic 118 | . . 118 Thermal 133 | . 133 . Explosive . | . . . Electromagnetic 522 | . 182 340 Impact . | . . . Slashing . | . . . Piercing . | . . . Highest Corruption . | . . . Average Corruption . | . . . Corruption Purged . | . . . Overload Shots . | . . . Overflow Damage 85 | . 85 . Projectiles . | . . . Explosions 85 | . 85 . Melee . | . . . Knockbacks . | . . . Impact . | . . . Kinetic . | . . . Secondary . | . . . Self-Inflicted Damage 76 | . 76 . Shots 1 | . 1 . Rammed . | . . . Targets Rammed . | . . . Kicked . | . . . Crushed . | . . . Highest Temperature 120 | . 120 95 Average Temperature 41 | . 61 35 Received Heat Transfer 246 | . 24 222 Siege Activations . | . . . Robots Corrupted . | . . . Combat Hostiles . | . . . Parts Fried 2 | . . 2 Impact Corruptions . | . . . Robots Melted . | . . . Combat Hostiles . | . . . Parts Melted . | . . . Heat Transferred 100 | . 100 . Parts Sabotaged . | . . . Parts Stolen . | . . . Parts Stripped . | . . . Power Chain Reactions . | . . . Missiles Intercepted . | . . . Alert | -11 -10 -9 ------- Run | Scr Mat Mat Peak Influence 191 | . 191 184 Initial . | . . . Average 108 | . 127 103 Maximum Alert Level . | . . . Low Security (%) 100 | 100 100 100 Level 1 . | . . . Level 2 . | . . . Level 3 . | . . . Level 4 . | . . . Level 5 . | . . . High Security . | . . . Max Security . | . . . Squads Dispatched 1 | . . 1 Investigation . | . . . Extermination . | . . . Reinforcement 1 | . . 1 Assault . | . . . Garrison . | . . . Intercept . | . . . Construction Impeded . | . . . Haulers Reinforced . | . . . Stealth | -11 -10 -9 --------- Run | Scr Mat Mat Distress Signals 1 | . . 1 Communications Jammed . | . . . Distress Signals . | . . . Times Spotted 18 | . 8 10 Peak Tracking Total 4 | . 3 4 Tactical Retreats 1 | . 1 . Traps | -11 -10 -9 ------- Run | Scr Mat Mat Traps Triggered 1 | . . 1 Indirectly . | . . . Trap Hack Attempts . | . . . Triggered . | . . . Disarmed . | . . . Reprogrammed . | . . . Reused . | . . . Traps Extracted . | . . . Installed . | . . . Triggered . | . . . Machines | -11 -10 -9 ---------- Run | Scr Mat Mat Machines Disabled 2 | . 2 . Max in Single Turn 2 | . 2 . Machines Sabotaged . | . . . Garrisons Compromised . | . . . Overloaded Fab Kills . | . . . Fab Network Shutdowns . | . . . Hacking | -11 -10 -9 --------- Run | Scr Mat Mat Machines Accessed 2 | . 1 1 Terminals 1 | . 1 . Fabricators . | . . . Repair Stations . | . . . Recycling Units . | . . . Scanalyzers 1 | . . 1 Garrison Access . | . . . Total Hacks 9 | . 3 6 Successful 6 | . 2 4 Failed 3 | . 1 2 Catastrophic . | . . . Database Lockouts . | . . . Manual . | . . . Terminals 3 | . 3 . Fabricators . | . . . Repair Stations . | . . . Recycling Units . | . . . Scanalyzers 6 | . . 6 Garrison Access . | . . . Terminal Hacks 2 | . 2 . Alert Level 1 | . 1 . Locate Traps 1 | . 1 . Fabricator Hacks . | . . . Repair Station Hacks . | . . . Recycling Unit Hacks . | . . . Scanalyzer 4 | . . 4 Insert Component 2 | . . 2 Analyze 2 | . . 2 Garrison Access Hacks . | . . . Unauthorized Hacks . | . . . Terminals . | . . . Fabricators . | . . . Repair Stations . | . . . Recycling Units . | . . . Scanalyzers . | . . . Garrison Access . | . . . Data Cores Recovered . | . . . Used . | . . . Hacking Detections 2 | . 1 1 Full Trace Events . | . . . Feedback Events . | . . . Feedback Blocked . | . . . Robot Schematics Acquired . | . . . Robots Built . | . . . Matter . | . . . Time . | . . . Total Robot Build Rating . | . . . Part Schematics Acquired 2 | . . 2 Parts Built . | . . . Matter . | . . . Time . | . . . Total Part Build Rating . | . . . Parts Repaired . | . . . Time . | . . . Parts Recycled . | . . . Recycled Matter . | . . . Retrieved Matter . | . . . Retrieved Components . | . . . Parts Scanalyzed 2 | . . 2 Part Schematics Acquired 2 | . . 2 Parts Damaged . | . . . Bothacking | -11 -10 -9 ------------ Run | Scr Mat Mat Used RIF Installer . | . . . Robots Hacked . | . . . Non-combat . | . . . Combat . | . . . Robot Hacks Applied . | . . . Relay Couplers Released . | . . . Robots Rewired . | . . . Allies Hacked . | . . . Hacks Repelled . | . . . Allies | -11 -10 -9 -------- Run | Scr Mat Mat Total Allies . | . . . Largest Group . | . . . Highest-Rated Group . | . . . Highest-Rated Ally . | . . . Total Orders . | . . . Ally Attacks . | . . . Total Damage . | . . . Kills . | . . . Allies Corrupted . | . . . Allies Melted . | . . . Intel | -11 -10 -9 ------- Run | Scr Mat Mat Robot Analysis Total . | . . . Derelict Logs Recovered . | . . . Drone Launches . | . . . Drone Recoveries . | . . . Exploration | -11 -10 -9 ------------- Run | Scr Mat Mat Turns Passed 742 | 58 424 260 Spaces Moved 428 | 41 274 113 Core 19 | 19 . . Treads . | . . . Legs 409 | 22 274 113 Wheels . | . . . Hover . | . . . Flight . | . . . Fastest Speed 50 | 50 120 120 Average Speed 118 | 104 120 120 Slowest Speed 120 | 120 120 120 Overloaded Moves . | . . . Propulsion Burnouts . | . . . Robots Hopped . | . . . Cave-ins Triggered . | . . . Exploration Rate (%) 21 | 4 42 17 Regions Visited 2 Branch Regions . Pre-discovered Areas . | . . . Known Exits Taken . | . . . Unknown Exits Taken 2 | 1 1 . Scrap Searched . | . . . Spaces Dug . | . . . Terrain Destroyed 45 | . 45 . Melee . | . . . Projectile . | . . . AOE 45 | . 45 . Terrain Rammed . | . . . Walls Destroyed . | . . . Machines Disabled . | . . . Actions | -11 -10 -9 --------- Run | Scr Mat Mat Total 608 | 56 351 201 Wait 86 | . 41 45 Move 426 | 40 273 113 Hop . | . . . Pick Up 25 | 10 8 7 Fast Attach 2 | . 2 . Attach 14 | 6 2 6 Detach 1 | . . 1 Swap 9 | . 6 3 Drop 13 | . 9 4 Fire 32 | . 10 22 Melee . | . . . Ram . | . . . Kick . | . . . Crush . | . . . Escape Stasis . | . . . Rewire . | . . . Trap . | . . . Miscellaneous . | . . . Route ------- -11/Scrapyard -10/Materials -9/Materials History --------- Turn | Location | Event 21 | -11/Scrapyard | Discovered new exit (range 15) 59 | -11/Scrapyard | Entered Materials 307 | -10/Materials | Build established: Mutant 441 | -10/Materials | Discovered new exit (range 16) 483 | -10/Materials | Entered another Materials area 483 | -9/Materials | Evolved 2 slots: Propulsion x2 707 | -9/Materials | Lost 5 parts (2p1n2w) 743 | -9/Materials | Self-destructed Last Messages --------------- 00678_ G-34 Mercenary IFF system glitched. 00683_ R-06 Scavenger inserts Aluminum Leg into recycling unit. 00685_ G-34 Mercenary destroyed. 00686_ R-06 Scavenger inserts Heat Sink into recycling unit. 00687_ Recycling unit begins recycling process. 00688_ O-16 Technician: "IFF HANDSHAKE FAILED. SECURING TERMINAL." 00688_ Acquired Aluminum Leg. 00689_ R-06 Scavenger inserts Sml. Laser into recycling unit. 00691_ R-06 Scavenger collects Aluminum Leg. 00692_ R-06 Scavenger inserts Aluminum Leg into recycling unit. 00693_ Recycling unit begins recycling process. 00693_ ALERT: Hostiles spotted, dispatching reinforcements to Terminal M003. 00695_ Acquired 50 matter. 00699_ Triggered EMP Trap. 00699_ A bubble of electromagnetic force engulfs the area. 00699_ Door malfunctions. 00706_ Acquired Prototype Energy Cannon. 00714_ U-05 Engineer repairs door. 00715_ U-05 Engineer lays Concrete. 00737_ K-01 Serf collects debris. Map ----- +----------------------------------------------------+ | | | | | | | ?????????????????????????????????????????????????? | | ?????????????????????????????????????????????????? | | ?????????????????????????????????????????????????? | | ?????????????????????????????????????????????????? | | ####?????????????????????????????????????????????? | | #?????????????????????????????????????????????? | | #?????????????????????????????????????????????? | | "" #?????????????????????????????????????????????? | | """#?????????????????????????????????????????????? | | S"#?????????????????????????????????????????????? | | """#?????????????????????????????????????????????? | | """#?????????????????????????????????????????????? | | #######???????????????????????????????????????? | | +### #???????????????????????????????????????? | | #??????????##########???????????????????? | | #??????????# ! #???????????????????? | | #??????????# #???????????????????? | | #### #??????????# #???????????????????? | | ##### ##??????????# #???????????????????? | | # #???????????# #???????????????????? | | # #???????????# #???????????????????? | | # #???????????# #???????????????????? | | # ####????????# @ #???????????????????? | | + ## #######??# #???????????????????? | | # # % #??#####+##########+###?????????? | | # # #?????# + #?????????? | | # # ####### # #?????????? | | # # %+ ?/ #?????????? | | ##### + [[ # ^ # """"? #?????????? | | ????# # "" [[[ # [] # """" #?????????? | | ????# # "Y [[ + / # """" "Y" #?????????? | | ????# # "" %%# ? # """? #????????? | | ????# # % # ##########????????????? | | ????# ########## """ #?????????????????????? | | ????# ???? R" ????????????????????? | | ????# ?? """ ??????????????????? | | ????# ??? ! ?????????????????? | | ????#] " ?"" #####?????????????????? | | ????# T ??" ##+###?????????????????????? | | ????# " ??" ## ????????????????????????? | | ????# ? ?? #? ????????????????????????? | | ????# ? ??? ### #?""????????????????????????? | | ????? ? ????? ??# ##"T????????????????????????? | | ?????????????????? #?""????????????????????????? | | ?????????????????? ????????????????????????????? | | ?????????????????????????????????????????????????? | | ?????????????????????????????????????????????????? | +----------------------------------------------------+ Best States ------------- Heat Dissipation 35 Energy Generation 10 Energy Capacity 125 Matter Stores 300 Matter Capacity 300 Sight Range 16 Robot Scan Range 10 Terrain Scan Density 10 Evasion (%) 40 Item Schematics ----------------- Signal Interpreter | -9/Materials | Scanalyzed Sensor Array | -9/Materials | Scanalyzed Robot Schematics ------------------ None Fabricated ------------ Nothing Alien Tech Used ----------------- None Achievements -------------- None Challenges ------------ None Game ------ Seed HelicalImprovedCasing Manual? 0 Play Time 00:13:48 Cumulative 33.9 hours Start 2020.09.23 @ 00:21:34 End 2020.09.23 @ 00:31:08 Sessions 1 Manual Loads 0 Difficulty Rogue Special Mode None Game No. 45 Rogue 45 Adventurer 0 Explorer 0 Win Type - Total 0 Types 0/0/0/0/0/0/0/0/0 Lore% 15 Gallery% 31 Achievement% 19 Wizard Run 0 Options --------- ASCII 0 Keyboard 0 Movement Mouse Keybinds 0 Fullscreen 1 Font 12/Smallcaps Map View 83x54 Tactical HUD 1 Map Filters NONE Filters NONE Steam 1 RUN: 68bda9db-9bca-4d1d-8ad0-67171b8bb348